[Event "Julius Baer Generation Cup Prelims 2022"]
[Site "Online"]
[Date "2022.09.14"]
[Round "12.7"]
[White "Yoo, Christopher Woojin"]
[Black "Erigaisi Arjun"]
[Result "0-1"]
[ECO "E36"]
[WhiteElo "2563"]
[BlackElo "2725"]
[Annotator "TA"]
[PlyCount "84"]
[EventDate "2022.09.12"]
[EventType "tourn"]
[EventCountry "NET"]
[SourceTitle "playchess.com"]
[Source "ChessBase"]
[SourceQuality "1"]
[TimeControl "900+10"]

{[%evp 15,84,12,4,-25,-13,-10,-6,-25,0,-6,0,-28,-27,-40,-33,-41,-17,-47,-13,-49,-49,-140,-131,-142,-135,-225,-170,-315,-330,-404,-405,-637,-635,-624,-616,-577,-470,-635,-536,-515,-527,-530,-497,-625,-631,-1051,-1019,-962,-949,-1135,-1085,-1158,-1102,-1750,-1616,-2523,-1719,-2086,-1828,-3144,-2011,-1983,-1779,-29984,-29985,-29984,-29985,-29987,-29985,-29988,-29983]} 1. d4 {[%emt 0:00:00]} Nf6 {[%emt 0:00:00]} 2. c4 {[%emt 0:00:02]} e6 {[%emt 0:00:02]} 3. Nc3 {[%emt 0:00:03]} Bb4 {[%emt 0:00:02]} 4. Qc2 {[%emt 0:00:01]} d5 {[%emt 0:00:03]} 5. a3 {[%emt 0:00:10]} Bxc3+ {[%emt 0:00:03]} 6. Qxc3 {[%emt 0:00:00]} O-O {[%emt 0:00:06]} 7. Nf3 {[%emt 0:00:01]} dxc4 {[%emt 0:00:06]} 8. Qxc4 {[%emt 0:00:00]} b6 {[%emt 0:00:01] BESTDEEP} 9. h4 {[%emt 0:00:05] CPLX 2.1 29 (Qc4-a4) (=29). E36: Nimzo-Indian: Classical: 4...d5 5 a3.} Ba6 {[%emt 0:00:03] CPLX 2.2 12 (Bc8-b7) (=6)} 10. Qc2 {[%emt 0:00:01] BESTDEEP} c5 {[%emt 0:00:06] CPLX 2.4 4 (Ba6-b7) (=5)} 11. dxc5 {[%emt 0:00:05][%cal Bd4c5,Bc5c6][%mdl 32] BESTDEEP. The position is equal.} Nbd7 {[%emt 0:00:01] BESTDEEP} 12. c6 {[%emt 0:00:16] CPLX 2.6} Rc8 $1 {[%emt 0:00:01] [#] DEEPSTRONG} 13. Bf4 $146 {[%emt 0:00:07] aiming for Rd1. CPLX 3.0 28 (b2-b4) (=11)} ({Predecessor:} 13. Bg5 Bb7 14. Nd4 Ne5 15. Rd1 Qe7 16. Rh3 Nxc6 17. Nxc6 Rxc6 18. Qa4 h6 19. Bxf6 Qxf6 20. Qxa7 {1-0 (57) Nakamura,H (2750)-Oparin,G (2674) Berlin 2022}) 13... Bb7 $1 {[%emt 0:01:03] DEEPSTRONG} 14. c7 {[%emt 0:00:07] CPLX 3.6} Qe7 {[%emt 0:00:03] CPLX 3.7} 15. e3 {[%emt 0:00:07] CPLX 3.4} Nd5 {[%emt 0:01:33] CPLX 3.6 24 (e6-e5) (=5)} 16. Bg3 {[%emt 0:02:56] [#] CPLX 3.9 30 (Bf4-h2) (=11)} ({But not} 16. Ng5 g6 17. Bg3 e5 $17) 16... Nxc7 $1 {[%emt 0:00:05] CPLX 3.6 34 (e6-e5) (=8)} 17. Be2 {[%emt 0:03:09] CPLX 2.9 36 (Ra1-d1) (=14)} (17. Rd1 Nd5) 17... Nd5 {[%emt 0:00:38][%cal Bc7d5,Bd5f6,Bf6e4][%mdl 32] CPLX 2.9} 18. Qb1 {[%emt 0:00:43] [#] Black continues to play with concentration. CPLX 3.0 91 (Qc2-d1) (=21)} (18. Qd1 $1 $15) 18... Nc5 $1 $17 {[%emt 0:00:01] Black is more active. DEEPSTRONG=>BLUNDERREACT} 19. O-O {[%emt 0:00:13] [#] CPLX 2.7 11 (Qb1-a2) (=20)} Nb3 $1 {[%emt 0:00:03] DEEPSTRONG} 20. Ra2 {[%emt 0:00:02] CPLX 3.0 90 (e3-e4) (=26)} (20. e4 $17 {keeps fighting.} Nf6 21. Qd3 Nxa1 22. Bd6) 20... Rfd8 {[%emt 0:00:00] CPLX 2.8 55 (Nd5-f6) (=10)} 21. h5 {[%emt 0:02:30] CPLX 2.8 145 (Qb1-e1) (=35)} (21. Qe1 {is a better defense.}) 21... Nf6 $19 {[%emt 0:01:12] EASY} 22. h6 {[%emt 0:01:16] CPLX 2.8 74 (Qb1-e1) (=38)} Ne4 {[%emt 0:00:04] BESTDEEP} 23. Bh4 {[%emt 0:01:51] CPLX 3.3 232 (Qb1-e1) (=51)} (23. Qe1 $142 Rc2 24. Bh4) 23... g5 {[%emt 0:00:02] CPLX 3.9=>BLUNDERREACT} 24. Bg3 {[%emt 0:00:54] CPLX 3.3} Nxg3 {[%emt 0:01:08] CPLX 3.2} 25. fxg3 {[%emt 0:00:02] RECAPT} Qc5 {[%emt 0:02:18] CPLX 3.5 107 (g5-g4) (=13)} 26. Qe1 {[%emt 0:00:42] CPLX 4.1 165 (Nf3-d4) (=52)} Qxe3+ {[%emt 0:00:04] CPLX 3.6 99 (Nb3-c1) (=18)} 27. Qf2 {[%emt 0:00:04] EASY} Qxf2+ {[%emt 0:00:02] EASY} 28. Rxf2 {[%emt 0:00:01] RECAPT 3 (Kg1xf2) (=47)} Rc1+ {[%emt 0:01:06] CPLX 2.4} 29. Kh2 {[%emt 0:00:11] CPLX 2.3 128 (Rf2-f1) (=51)} g4 {[%emt 0:00:03] BESTDEEP} 30. Ng1 {[%emt 0:02:05] CPLX 2.7 400 (a3-a4) (=66)} f5 {[%emt 0:00:25] CPLX 2.5 32 (Rd8-d2) (=16)} 31. a4 {[%emt 0:00:12] CPLX 2.5} Rd2 {[%emt 0:00:09] Hoping for ...Nd4. CPLX 2.6} 32. a5 {[%emt 0:01:05] CPLX 2.9 186 (Ra2-a3) (=69)} b5 {[%emt 0:00:02][%cal Bb6b5,Bb5b4][%mdl 32] CPLX 3.4} 33. Ra3 {[%emt 0:01:02] CPLX 2.9 73 (Rf2-f4) (=69)} Rxb2 {[%emt 0:00:11] ...b4 is the strong threat. CPLX 3.3} 34. Rf4 {[%emt 0:00:01] CPLX 3.4 400 (Rf2-f1) (=82)} Rbb1 {[%emt 0:00:38] BESTDEEP} 35. Rf1 {[%emt 0:00:19] CPLX 3.4 400 (Be2-d3) (=93)} Rxf1 {[%emt 0:00:15] CPLX 3.0} 36. Bxf1 {[%emt 0:00:00] RECAPT} b4 {[%emt 0:00:02] CPLX 2.8} 37. Ra4 {[%emt 0:00:28] MISSDEEP-Ra3-a2 400 (Ra3-a2) (=101)} Nc5 {[%emt 0:00:30] CPLX 2.8} 38. a6 {[%emt 0:00:06] CPLX 3.0} Bxg2 {[%emt 0:00:03] CPLX 3.3 204 (Bb7-e4) (=18)} 39. Ra5 {[%emt 0:00:05] RELBLUND 400 (Ra4xb4) (=107)} Bxf1 {[%emt 0:00:01] CPLX 3.3. Black mates.} 40. Rxc5 {[%emt 0:00:01] EASY} Rb2+ {[%emt 0:00:01] CPLX 2.3} 41. Kh1 {[%emt 0:00:01] RELBLUND 2 (Ng1-e2) (=101)} Bg2+ {[%emt 0:00:02] EASY} 42. Kh2 {[%emt 0:00:07] LEGAL} Bd5+ {[%emt 0:00:20] Weighted Error Value: White=1.18/Black=0.17 (very precise)} 0-1

[Event "Julius Baer Generation Cup Prelims 2022"]
[Site "Online"]
[Date "2022.09.14"]
[Round "13.1"]
[White "Keymer, Vincent"]
[Black "Giri, Anish"]
[Result "1/2-1/2"]
[ECO "D33"]
[WhiteElo "2693"]
[BlackElo "2764"]
[Annotator "TA"]
[PlyCount "85"]
[EventDate "2022.09.12"]
[EventType "tourn"]
[EventCountry "NET"]
[SourceTitle "playchess.com"]
[Source "ChessBase"]
[SourceQuality "1"]
[TimeControl "900+10"]

{[%evp 11,85,36,25,0,25,11,20,17,20,5,5,14,17,0,0,0,0,0,0,0,0,0,0,0,0,0,0,0,0,-33,-32,-33,-31,-72,-73,-155,-68,-101,-104,-108,0,0,0,0,0,0,0,0,0,0,0,0,0,0,0,0,0,0,0,0,0,0,0,0,0,0,0,0,0,0,0,0,0,0,0,0]} 1. c4 {[%emt 0:00:00]} c5 {[%emt 0:00:00]} 2. Nf3 {[%emt 0:00:05]} Nf6 {[%emt 0:00:02]} 3. Nc3 {[%emt 0:00:04]} e6 {[%emt 0:00:00]} 4. g3 {[%emt 0:00:08]} d5 {[%emt 0:00:03]} 5. cxd5 {[%emt 0:00:04]} exd5 {[%emt 0:00:00]} 6. d4 {[%emt 0:00:01]} Nc6 {[%emt 0:00:01]} 7. a3 {[%emt 0:00:12] D33: Tarrasch Defence: 6 g3 sidelines.} cxd4 {[%emt 0:00:03]} 8. Nxd4 {[%emt 0:00:03]} Bc5 {[%emt 0:00:00] 8...Be7 is not played anymore.} 9. Be3 {[%emt 0:00:31] [#] Hoping for Nxc6.} Bb6 {[%emt 0:00:01]} (9... Qb6 10. Na4 Qa5+ 11. Bd2 $16 (11. b4 Nxb4 12. axb4 Bxb4+ 13. Bd2 Ne4 $18)) 10. Bg2 {[%emt 0:00:31]} O-O {[%emt 0:00:34][%cal Bh8f8,Bf8e8,Be8e2,Be2b2,Bb2b5,Bb5a5][%mdl 32]} 11. O-O {[%emt 0:00:20]} Re8 {[%emt 0:00:44]} 12. Na4 {[%emt 0:02:08]} (12. Qd2 {keeps more tension.} Bg4 13. Rfd1 Nxd4 14. Bxd4 Bxd4 15. Qxd4 Bxe2 16. Re1) 12... Bxd4 {[%emt 0:00:32]} 13. Bxd4 {[%emt 0:00:03]} Nxd4 {[%emt 0:00:40]} 14. Qxd4 {[%emt 0:00:04]} Rxe2 {[%emt 0:00:00]} 15. Nc3 {[%emt 0:02:23][%csl LRd5,LRe2]} Rxb2 {[%emt 0:01:55]} 16. Nxd5 {[%emt 0:00:42] [#]} Rb5 $146 {[%emt 0:00:43][%cal Rf6d5]} ({Predecessor:} 16... Rb6 17. Rad1 Nxd5 18. Bxd5 Qf8 19. Rfe1 Be6 20. Bxe6 Rxe6 21. Rxe6 fxe6 22. Qd7 Re8 23. Qxb7 Qxa3 24. Rd7 Qa1+ 25. Kg2 Qf6 26. Qxa7 Rf8 {½-½ (26) Korobov,A (2671)-Anand,V (2751) Warsaw 2022}) 17. Rfd1 {[%emt 0:01:50]} Be6 {[%emt 0:03:01]} 18. Nxf6+ {[%emt 0:01:09]} Qxf6 {[%emt 0:00:00]} 19. Qxf6 {[%emt 0:00:01]} gxf6 {[%emt 0:00:01]} 20. Rab1 {[%emt 0:00:11]} Ra5 {[%emt 0:01:29]} 21. Rxb7 {[%emt 0:02:41]} Rc8 {[%emt 0:00:10]} 22. h4 {[%emt 0:01:15]} Rxa3 {[%emt 0:00:05]} 23. Rd4 {[%emt 0:00:01]} (23. Rbb1 $142) 23... Kg7 {[%emt 0:01:20]} (23... Ra1+ $17 24. Kh2 Rc2) 24. Rd6 {[%emt 0:00:57] And now Rxe6 would win.} Rc1+ {[%emt 0:01:51]} 25. Kh2 {[%emt 0:00:02] [#] Strongly threatening Rxe6.} Re1 {[%emt 0:00:02]} ({Black should try} 25... Bc8 $1 $17 {[%cal Rc8b7]} 26. Re7 Ra2) 26. Bd5 $11 {[%emt 0:01:38] The position is equal.} Bxd5 {[%emt 0:01:42]} 27. Rxd5 {[%emt 0:00:00][%mdl 4096] Endgame KRR-KRR} Ra2 {[%emt 0:00:02]} 28. Kg2 {[%emt 0:00:20]} Ree2 {[%emt 0:00:05]} 29. Rf5 {[%emt 0:00:13]} Kg6 {[%emt 0:02:41]} 30. Rf4 {[%emt 0:00:15][%cal Oh4h5]} h5 {[%emt 0:00:01]} 31. Rc7 {[%emt 0:00:32]} Rec2 {[%emt 0:01:24]} 32. Rxc2 {[%emt 0:00:31]} Rxc2 {[%emt 0:00:00] KR-KR} 33. Ra4 {[%emt 0:00:01]} Rc7 {[%emt 0:00:02]} 34. Kf3 {[%emt 0:00:26]} f5 {[%emt 0:00:20]} 35. Ra6+ {[%emt 0:00:07]} f6 {[%emt 0:00:01]} 36. Ra5 {[%emt 0:00:01]} Re7 {[%emt 0:00:08]} 37. Kf4 {[%emt 0:00:22]} Rb7 {[%emt 0:00:14]} 38. Kf3 {[%emt 0:00:05]} Rd7 {[%emt 0:00:08]} 39. Ke3 {[%emt 0:00:09]} Re7+ {[%emt 0:00:11]} 40. Kf4 {[%emt 0:00:15]} Rb7 {[%emt 0:00:14]} 41. Kf3 {[%emt 0:00:03]} Rd7 {[%emt 0:00:01]} 42. Ke3 {[%emt 0:00:01]} Re7+ {[%emt 0:00:01]} 43. Kf4 {[%emt 0:00:02] Weighted Error Value: White=0.08 (flawless) /Black=0.07 (flawless)} 1/2-1/2

[Event "Julius Baer Generation Cup Prelims 2022"]
[Site "Online"]
[Date "2022.09.14"]
[Round "13.2"]
[White "Erigaisi Arjun"]
[Black "Wojtaszek, Radoslaw"]
[Result "1/2-1/2"]
[ECO "D00"]
[WhiteElo "2725"]
[BlackElo "2696"]
[Annotator "TA"]
[PlyCount "77"]
[EventDate "2022.09.12"]
[EventType "tourn"]
[EventCountry "NET"]
[SourceTitle "playchess.com"]
[Source "ChessBase"]
[SourceQuality "1"]
[TimeControl "900+10"]

{[%evp 9,77,6,0,0,0,0,7,0,0,7,0,0,0,0,25,17,46,38,64,11,22,41,76,68,77,0,2,0,0,-12,24,7,31,-18,-8,-19,-10,-8,-1,-1,-1,-19,-4,-44,0,0,0,0,0,0,0,0,0,0,0,0,0,0,0,0,0,0,0,0,0,0,0,0,0,0]} 1. d4 {[%emt 0:00:00]} Nf6 {[%emt 0:00:00]} 2. Bg5 {[%emt 0:00:02]} d5 {[%emt 0:00:03]} 3. e3 {[%emt 0:00:02]} c5 {[%emt 0:00:05]} 4. Bxf6 {[%emt 0:00:04]} gxf6 {[%emt 0:00:12]} 5. dxc5 {[%emt 0:00:01]} e6 {[%emt 0:00:02]} 6. Nf3 {[%emt 0:00:05] D00: 1 d4 d5: Unusual lines.} Bxc5 {[%emt 0:00:11]} 7. Be2 {[%emt 0:00:01]} Nc6 {[%emt 0:00:05]} 8. O-O {[%emt 0:00:05]} f5 {[%emt 0:00:02]} 9. c4 {[%emt 0:00:11]} d4 {[%emt 0:00:36]} 10. b4 {[%emt 0:00:01]} Bxb4 {[%emt 0:00:33]} 11. exd4 {[%emt 0:00:02] [#] And now d5 would win.} O-O {[%emt 0:01:25]} 12. Qb3 {[%emt 0:01:14] [#] d5 is the strong threat.} Bd6 $146 {[%emt 0:03:47]} (12... Nxd4 $2 13. Nxd4 Bd6 14. Nc3 $18) (12... Qf6 {with more complications.} 13. d5 Qxa1 14. dxc6 a5) ({Predecessor:} 12... Be7 13. d5 exd5 14. cxd5 Na5 15. Qc2 Qxd5 16. Nc3 Qc5 17. Rac1 Rd8 18. Qb1 Qb4 {0-1 (44) Kaasen,T (2183)-Kozak,A (2505) Tornelo INT 2020}) 13. Rd1 {[%emt 0:01:12]} (13. Na3 {seems wilder.} Bxa3 14. Qxa3 Nxd4 15. Nxd4 Qxd4 16. Rfd1) 13... Qf6 {[%emt 0:00:11]} 14. Nc3 {[%emt 0:00:10]} (14. c5 $1 $14 Bc7 15. Nc3) 14... b6 {[%emt 0:01:40]} 15. Nb5 {[%emt 0:02:22]} Rd8 {[%emt 0:00:58]} 16. Nxd6 {[%emt 0:01:44]} Rxd6 {[%emt 0:00:00]} 17. d5 {[%emt 0:00:33]} ({White should try} 17. Rac1 $16) 17... Na5 {[%emt 0:00:39]} 18. Qe3 {[%emt 0:00:40]} exd5 {[%emt 0:00:10]} 19. Qf4 {[%emt 0:02:52]} Bd7 {[%emt 0:00:03]} 20. Rac1 {[%emt 0:02:19][%cal Ba1c1,Bc1c5,Bc5a5,Ba5a7][%mdl 32]} Re8 {[%emt 0:00:11]} 21. c5 {[%emt 0:00:04]} (21. Bf1 $14) 21... bxc5 $11 {[%emt 0:00:06]} 22. Rxc5 {[%emt 0:00:00]} Rxe2 {[%emt 0:01:19]} 23. Rxa5 {[%emt 0:00:02]} d4 {[%emt 0:02:21]} 24. Rxa7 {[%emt 0:00:52]} ({Avoid the trap} 24. Nxd4 $2 {[#]} Rxd4 $1 {[%mdl 512]} 25. Qg3+ Kh8 $19) 24... d3 {[%emt 0:00:29]} 25. h3 {[%emt 0:00:12]} Bc6 {[%emt 0:00:55]} 26. Ra6 {[%emt 0:00:12][%cal Oa6c6]} Re4 {[%emt 0:00:57]} 27. Qg3+ {[%emt 0:00:35] The position is equal.} Qg6 {[%emt 0:00:18]} 28. Qxg6+ {[%emt 0:01:42]} hxg6 {[%emt 0:00:27]} 29. Ne1 {[%emt 0:00:50]} d2 {[%emt 0:01:18]} 30. Nf3 {[%emt 0:00:03]} Re2 {[%emt 0:00:01][%cal Oc6f3] Strongly threatening ...Bxf3!} 31. Rxd2 {[%emt 0:00:17]} Rexd2 {[%emt 0:00:16]} 32. Nxd2 {[%emt 0:00:00]} Rxd2 {[%emt 0:00:01]} 33. Rxc6 {[%emt 0:00:02]} Rxa2 {[%emt 0:00:00][%mdl 4096] Endgame KR-KR} 34. Rc8+ {[%emt 0:00:03]} Kg7 {[%emt 0:00:02]} 35. h4 {[%emt 0:00:00]} Ra1+ {[%emt 0:00:02]} 36. Kh2 {[%emt 0:00:01]} Ra2 {[%emt 0:00:01]} 37. Kg1 {[%emt 0:00:01]} Ra1+ {[%emt 0:00:01]} 38. Kh2 {[%emt 0:00:00]} Ra2 {[%emt 0:00:00]} 39. Kg1 {[%emt 0:00:01] Weighted Error Value: White=0.10 (very precise) /Black=0.09 (flawless)} 1/2-1/2

[Event "Julius Baer Generation Cup Prelims 2022"]
[Site "Online"]
[Date "2022.09.14"]
[Round "13.3"]
[White "Carlsen, Magnus"]
[Black "Yoo, Christopher Woojin"]
[Result "1-0"]
[ECO "E27"]
[WhiteElo "2861"]
[BlackElo "2563"]
[Annotator "TA"]
[PlyCount "95"]
[EventDate "2022.09.12"]
[EventType "tourn"]
[EventCountry "NET"]
[SourceTitle "playchess.com"]
[Source "ChessBase"]
[SourceQuality "1"]
[TimeControl "900+10"]

{[%evp 10,95,0,-3,0,0,39,0,0,0,-8,0,0,-33,-25,-35,-38,-39,50,-32,-24,-35,-31,-50,-51,-52,-52,-61,-46,-21,0,10,31,29,20,20,25,22,41,0,174,182,173,163,169,165,158,146,168,172,173,184,172,64,237,210,216,197,246,229,304,259,262,240,221,245,244,202,193,178,243,247,353,342,319,295,321,297,528,513,522,504,798,520,1202,495,29991,577]} 1. d4 {[%emt 0:00:00]} Nf6 {[%emt 0:00:00]} 2. c4 {[%emt 0:00:02]} e6 {[%emt 0:00:02]} 3. Nc3 {[%emt 0:00:18]} Bb4 {[%emt 0:00:03]} 4. a3 {[%emt 0:00:01]} Bxc3+ {[%emt 0:00:10]} 5. bxc3 {[%emt 0:00:00]} O-O {[%emt 0:00:11]} 6. f3 {[%emt 0:00:09]} Nh5 {[%emt 0:00:38] Strongly threatening ...Qh4+. E27: Nimzo-Indian: Sämisch: 5...0-0 6 f3.} 7. Nh3 {[%emt 0:00:04]} f5 {[%emt 0:00:06]} 8. Bg5 {[%emt 0:00:02]} (8. e4 $14 {is superior.}) 8... Qe8 $11 {[%emt 0:00:03] The position is equal.} 9. g4 {[%emt 0:00:03]} Nf6 {[%emt 0:01:03]} 10. gxf5 {[%emt 0:00:07]} exf5 {[%emt 0:00:08]} 11. Rg1 {[%emt 0:00:34] [#]} d6 $146 {[%emt 0:01:30]} ({Predecessor:} 11... Kh8 12. Nf4 d6 13. Qd3 Nc6 14. e3 Nd8 15. Ra2 Nh5 16. Nxh5 Qxh5 17. Rag2 Ne6 {½-½ (56) Belous,V (2553)-Reshetnikov,A (2508) Moscow 2013}) 12. Nf4 {[%emt 0:01:41]} Nc6 {[%emt 0:01:45]} (12... Qe3 13. Rg2 Qxc3+ 14. Kf2 $14) 13. Kf2 {[%emt 0:02:16] Prevents Qe3+.} Nh5 {[%emt 0:03:12]} (13... Ne7 $15) 14. c5 {[%emt 0:00:10]} (14. Nd5 $1 $14 Qf7 15. f4) 14... dxc5 $15 {[%emt 0:01:01]} 15. e3 {[%emt 0:00:01]} Kh8 {[%emt 0:00:33]} 16. Bc4 {[%emt 0:03:13]} h6 {[%emt 0:01:54]} 17. Nxh5 {[%emt 0:03:50][%mdl 64] [#] Remove Defender} Qxh5 {[%emt 0:00:06]} 18. Bf4 {[%emt 0:00:00]} g5 {[%emt 0:00:54]} 19. Bxc7 {[%emt 0:00:03]} f4 {[%emt 0:00:32]} 20. exf4 {[%emt 0:01:06] Black must now prevent d5. Active counter play!} Qxh2+ {[%emt 0:00:22]} 21. Rg2 {[%emt 0:00:06] The board is on fire.} Qh4+ {[%emt 0:00:00]} 22. Kg1 {[%emt 0:00:08] [#] And now d5 would win.} Bh3 {[%emt 0:00:42]} 23. Rh2 $36 {[%emt 0:00:02][%mdl 2048] White has good play.} gxf4 {[%emt 0:00:35][%cal Of8g8]} 24. Kh1 {[%emt 0:00:04]} (24. Qe2 $5 {[%cal Rc7e5]} Rae8 25. Qf2 $11) 24... Rac8 $2 {[%emt 0:01:11]} (24... cxd4 $11 25. cxd4 (25. Bf1 Qe7 $15) 25... Rfc8 26. Be5+ (26. Bd6 Rd8 $15) 26... Nxe5) 25. Bd6 $18 {[%emt 0:00:29] A strong pair of Bishops.} Rf6 {[%emt 0:00:01][%cal Bf8f6,Bf6g6,Bg6g5][%mdl 32]} 26. dxc5 {[%emt 0:00:53]} (26. Bxc5 b6 $16) 26... Rg6 {[%emt 0:00:28] ( -> ...Bg2+)} 27. Qe2 {[%emt 0:01:08]} Qg3 {[%emt 0:00:20]} 28. Re1 {[%emt 0:00:43]} Rg5 {[%emt 0:01:06]} 29. Qf2 {[%emt 0:00:34]} Qxf2 {[%emt 0:00:32]} 30. Rxf2 {[%emt 0:00:02]} Bd7 {[%emt 0:00:22]} 31. Rh2 {[%emt 0:00:11]} (31. Bxf4 $18 Rh5+ 32. Rh2 Rxh2+ 33. Kxh2) 31... h5 $2 {[%emt 0:00:01] This move loses the game for Black.} (31... Re8 $1 $14 32. Rxe8+ (32. Rxh6+ Kg7 $16) 32... Bxe8) 32. Rg1 {[%emt 0:00:05]} Rxg1+ {[%emt 0:00:10]} 33. Kxg1 {[%emt 0:00:00]} Be8 {[%emt 0:00:02]} (33... Kg7 $142 34. Rxh5 (34. Bxf4 Rf8 $16) 34... Kg6) 34. Rg2 {[%emt 0:00:05]} (34. Bxf4 $6 Rd8 35. Bd6 Kg7) 34... b6 {[%emt 0:00:25]} 35. Rg8+ {[%emt 0:00:31]} (35. Bxf4 bxc5 36. Kf2 Bd7 $18) 35... Kh7 {[%emt 0:00:01]} 36. Rg5 {[%emt 0:00:05]} (36. Bxf4 $6 Ne7 37. Rg5 Rxc5 38. Rxc5 bxc5 $16) 36... Bg6 {[%emt 0:00:16]} 37. Bb5 {[%emt 0:00:17]} (37. Bxf4 Na5) 37... Na5 {[%emt 0:00:15]} 38. Re5 {[%emt 0:00:05] Threatens to win with Re7+.} (38. Bxf4 $6 Nb3 $16) (38. Bd7 Rd8 39. Ba4 Nc4 $16) 38... Nc6 {[%emt 0:00:14] Inhibits Re7+.} 39. Re6 {[%emt 0:00:06]} bxc5 {[%emt 0:00:14]} (39... Bf7 $142 40. Rf6 Kg7 41. Rxf4 bxc5 42. Bxc5 a5) 40. Bxf4 {[%emt 0:00:05]} (40. Bxc5 $6 Nd8 41. Re7+ Kg8 $16) 40... Rg8 {[%emt 0:00:14]} (40... Rf8 $142 41. Bd6 (41. Bxc6 Rxf4 42. Kf2 Kg7 $11) 41... Rc8) 41. Kf2 {[%emt 0:00:16]} (41. Rxc6 Bd3+ 42. Kf2 Bxb5 43. Rh6+ (43. Rxc5 Be8 $16) 43... Kg7 $18) 41... Nd8 {[%emt 0:00:09]} 42. Rd6 {[%emt 0:00:07]} Bf5 {[%emt 0:00:12]} 43. Bc4 {[%emt 0:00:38] Against Ne6} ({Don't do} 43. Rh6+ Kg7 44. Bc4 (44. Rxh5 Kf6 $18) 44... Re8 45. Rxh5 Kf6 46. Rh6+ Bg6) 43... Rh8 {[%emt 0:00:21]} (43... Re8 {might work better.} 44. Ra6 Re7 45. Rh6+ Kg7 46. Rxh5 Kg6) 44. Bg5 {[%emt 0:00:15]} Nb7 {[%emt 0:00:03]} 45. Rf6 {[%emt 0:00:25]} Bc8 {[%emt 0:00:18]} (45... Na5 $142 46. Bd5 (46. Rxf5 Nxc4 47. Rxc5 Kg6 $18) 46... Bd3 47. Rh6+ Kg7) 46. f4 {[%emt 0:00:49] aiming for Rh6+.} Kg7 {[%emt 0:00:13] Against Rh6} (46... Na5 $142 47. Bd5 Rg8 48. Rh6+ Kg7 49. Bxg8 Kxg8 50. Rxh5 Nb3) 47. f5 {[%emt 0:00:04]} (47. Rc6 $142) 47... h4 {[%emt 0:00:15]} (47... Bxf5 $18 48. Rxf5 Nd6) 48. Rf7+ {[%emt 0:00:05] Weighted Error Value: White=0.27 (precise) /Black=0.46} 1-0